Cogmind - Beta 14 @@@ ROGUE MODE // 2025.03.28 @ 23:31:26 Player: MoYuYu Result: Destroyed by G-73 Enforcer with Phase Gun Performance ------------- Evolutions (7) 3500 Regions Visited (20) 4000 Robots Destroyed (341) 1705 Value Destroyed (17244) 17244 Prototype IDs (40) 800 Alien Tech Used (0) 0 Bonus (8052) 8052 TOTAL SCORE: 35301 Bonus ------- Triggered Max Security 1000 High Alert Combat Kills 5341 Follower Combat Kills 972 Entered Garrisons 400 Aligned with FarCom 300 Scanned by Researcher 500 Friendly Fire -461 Cogmind --------- Core Integrity 0/1300 Matter 219/550 Energy 67/310 System Corruption 26% Temperature Cool (0) Movement Walking (260) Ox2 Location -3/Testing Parts ------- > --- POWER (2) -------- Reinforced Fission Core > --- PROPULSION (6) --- Centrium Leg > --- UTILITY (10) ----- Improved Coolant Injector Advanced Coolant Injector High-capacity Storage Unit Matter Compressor Advanced Target Analyzer Advanced Weapon Cycler > --- WEAPON (3) ------- Power Sword > --- INVENTORY (20) --- Light Antimatter Reactor Myomer Leg Myomer Leg Myomer Leg Centrium Leg Structural Scanner Improved Plasma Cutter Peak State ------------ > --- POWER ------------ Reinforced Fission Core Particle Reactor > --- PROPULSION ------- Armored Heavy Treads Biometal Heavy Treads Advanced Heavy Siege Treads > --- UTILITY ---------- Advanced Cooling System Advanced Cooling System Advanced Cooling System Advanced Coolant Injector High-capacity Storage Unit Structural Scanner Advanced Target Analyzer Advanced Weapon Cycler Advanced Drone Bay > --- WEAPON ----------- Quantum Rifle Enhanced Nova Cannon Mass Driver > --- INVENTORY -------- Light Antimatter Reactor Light Quantum Reactor Flexi-carbon Leg Myomer Leg Centrium Leg Centrium Leg Wheel Wheel Advanced Heat Sink Advanced Heat Sink Improved Coolant Injector Matter Compressor Propulsion Shielding Plasma Rifle Heavy Phase Cannon Railgun Enhanced Gauss Cannon Gamma Bomb Array Improved Plasma Cutter Power Sword [Rating: 154] Favorites ----------- Power Micro Nuclear Core Engine Improved Ion Engine Power Core Micro Nuclear Core Reactor Light Particle Reactor Propulsion Armored Treads Treads Armored Treads Leg Flexi-carbon Leg Wheel Compact Wheel Hover Unit Gravmag System Flight Unit Nuclear Pulse Thruster Utility Structural Scanner Device Structural Scanner Storage High-capacity Storage Unit Processor Advanced Signal Interpreter Hackware Hacking Suite Protection Hardened Medium Armor Plating Weapon Heavy Assault Rifle Energy Gun Plasma Rifle Energy Cannon Heavy Particle Cannon Ballistic Gun Heavy Assault Rifle Ballistic Cannon Advanced Assault Cannon Launcher Heavy Shock Bomb Launcher Special Weapon Plasma Cutter Slashing Weapon Power Sword Piercing Weapon Spear Special Melee Weapon Improved Datajack Build | -11 -10 -10 -9 -9 -9 -8 -8 -7 -6 -5 -5 -5 -5 -5 -4 -4 -3 -3 -3 -3 ------- Run | Yrd Mat Min Mat Min Exi Min Mat Fac Fac Fac Ext Cet Arc Hub Fac Gar Res Gar Res Tes Slots Evolved 14 | . . . 2 . . . 2 2 2 2 . . . . 2 . 2 . . . Power 1 | . . . . . . . . . . . . . . . . . 1 . . . Propulsion 4 | . . . 1 . . . . 1 . 1 . . . . . . 1 . . . Utility 8 | . . . 1 . . . 1 1 2 1 . . . . 2 . . . . . Weapon 1 | . . . . . . . 1 . . . . . . . . . . . . . Parts Attached 496 | 6 15 1 39 1 . 6 61 41 48 14 40 21 8 18 15 10 44 42 44 22 Power 39 | 1 2 . 2 . . 1 3 5 5 . 2 1 1 . 2 . 5 4 3 2 Engine 16 | 1 2 . 2 . . 1 3 1 3 . . 1 1 . 1 . . . . . Core 13 | . . . . . . . . 4 2 . 2 . . . . . 1 1 1 2 Reactor 10 | . . . . . . . . . . . . . . . 1 . 4 3 2 . Propulsion 117 | 2 8 . 9 . . . 10 3 11 4 18 3 4 4 2 4 10 14 6 5 Treads 54 | . 2 . 7 . . . 10 3 3 . 7 2 4 2 2 . 1 6 4 1 Leg 44 | 2 4 . 2 . . . . . 4 . 4 1 . 2 . 4 9 8 2 2 Wheel 13 | . . . . . . . . . 1 3 7 . . . . . . . . 2 Hover 4 | . 2 . . . . . . . 2 . . . . . . . . . . . Flight 2 | . . . . . . . . . 1 1 . . . . . . . . . . Utility 185 | 1 3 1 18 1 . 2 31 18 20 5 11 2 1 8 7 6 19 11 17 3 Device 113 | . . . 11 1 . 1 14 13 11 2 8 . . 5 7 4 15 7 11 3 Storage 11 | 1 2 . 2 . . . 2 . . 1 1 . . . . . . . 2 . Processor 9 | . . . . . . . . 1 4 . . . . 1 . 1 1 . 1 . Hackware 2 | . . . . . . . . . 1 1 . . . . . . . . . . Protection 50 | . 1 1 5 . . 1 15 4 4 1 2 2 1 2 . 1 3 4 3 . Artifact . | . . . . . . . . . . . . . . . . . . . . . Weapon 155 | 2 2 . 10 . . 3 17 15 12 5 9 15 2 6 4 . 10 13 18 12 Energy Gun 21 | 1 . . 1 . . . . . 1 1 1 1 . 2 . . 3 . 6 4 Energy Cannon 19 | . . . 3 . . . 2 4 . . . . . 3 2 . 1 2 2 . Ballistic Gun 57 | 1 2 . 6 . . 2 11 3 8 2 5 6 2 . . . 4 3 . 2 Ballistic Cannon 18 | . . . . . . . . 2 1 . 1 1 . 1 . . 1 4 6 1 Launcher 19 | . . . . . . . . 1 . . . 5 . . . . 1 4 4 4 Special Weapon 7 | . . . . . . 1 4 2 . . . . . . . . . . . . Impact Weapon . | . . . . . . . . . . . . . . . . . . . . . Slashing Weapon 10 | . . . . . . . . . 1 2 2 2 . . 2 . . . . 1 Piercing Weapon 1 | . . . . . . . . . 1 . . . . . . . . . . . Special Melee Weapon 3 | . . . . . . . . 3 . . . . . . . . . . . . Unidentified Prototypes 13 | . . . 2 . . . 1 1 . . . 2 . 2 . . 2 . 2 1 Corrupted Parts 1 | . . . . . . . . . . . . 1 . . . . . . . . System Corruption 8 | . . . . . . . . . . . . 8 . . . . . . . . Parts Lost 114 | . . . 3 . . . 3 10 9 1 15 5 3 1 1 4 11 15 9 24 Power 13 | . . . 1 . . . . 1 1 . 1 1 1 . . . 2 2 1 2 Propulsion 36 | . . . . . . . 1 3 3 1 7 1 2 1 . 1 6 2 1 7 Utility 41 | . . . 2 . . . 1 3 4 . 6 2 . . 1 3 2 7 3 7 Weapon 24 | . . . . . . . 1 3 1 . 1 1 . . . . 1 4 4 8 Highest Loss Streak 16 | . . . 1 . . . 1 9 3 1 13 4 2 1 1 3 7 5 4 16 To Critical Strikes 4 | . . . . . . . . 1 . . 2 . . . . . . . . 1 Average Slot Usage (%) 94 | . 88 100 96 100 100 100 99 98 86 98 97 92 86 96 99 93 93 83 80 88 Engine 4 | . 14 14 10 11 11 11 9 3 1 . . . 5 5 4 5 1 . . . Core 2 | . . . . . . . . 3 2 5 4 4 . . . . 2 1 4 4 Treads 17 | . 6 28 27 33 33 33 26 29 7 1 8 8 19 18 21 9 2 6 14 14 Leg 6 | . 20 . 4 . . . . . 8 17 5 2 . 7 5 16 23 13 . 7 Wheel 1 | . . . . . . . . . . 6 12 10 1 . . . . . . . Device 18 | . . . 12 22 22 15 15 20 15 17 21 22 11 16 25 21 23 26 28 28 Storage 6 | . 13 14 11 11 11 11 9 6 . 4 5 5 5 5 5 5 4 4 4 9 Processor 3 | . . . . . . . . . 13 13 5 5 5 5 5 6 9 . 3 4 Hackware 1 | . . . . . . . . . 4 3 5 5 5 5 5 5 . . . . Protection 7 | . 3 14 7 . . 6 11 9 7 5 4 5 11 11 10 6 3 5 3 . Energy Gun 2 | . 8 . . . . . . . 3 4 5 5 5 5 5 5 4 1 2 2 Energy Cannon 3 | . . . 7 11 11 . . 6 . . . . . 1 4 5 4 4 4 2 Ballistic Gun 10 | . 19 28 14 11 11 22 26 2 12 7 8 8 5 5 5 5 3 3 1 1 Ballistic Cannon 2 | . . . . . . . . 12 . . . . 5 3 . . . 2 3 3 Peak Build Rating 154 | 6 11 11 16 15 16 23 40 48 56 63 73 91 92 100 97 102 130 144 154 144 Average Rating 61 | 4 7 11 14 15 15 15 27 44 45 58 63 85 89 90 93 97 118 132 144 124 On Entrance 55 | . 6 10 11 15 15 16 15 32 5 56 61 70 75 92 82 96 96 130 138 138 Naked Turns 27 | . . . . . . . . 27 . . . . . . . . . . . . Heaviest Build 134 | 14 23 26 38 38 36 37 58 61 28 65 84 85 91 93 95 106 115 134 126 115 Greatest Support 225 | 20 40 40 63 63 63 63 63 80 56 56 46 103 159 159 109 109 128 225 215 157 Greatest Overweight (x) 6 | 2 2 . 1 . . . 1 1 1 4 6 3 . 1 . 1 1 1 . 5 Average Overweight (x) . | . . . . . . . . . . 1 2 2 . . . . . . . 1 Largest Inventory Capacity 25 | 8 10 10 15 15 15 15 25 15 5 20 20 20 20 20 20 20 20 20 20 20 Average Capacity 15 | 7 8 10 12 15 15 15 15 14 5 19 20 20 20 20 20 20 20 20 20 20 Most Carried 20 | 6 9 8 12 11 13 12 15 15 5 15 20 20 20 20 20 20 20 20 20 18 Average Carried 13 | 4 7 8 9 11 11 10 14 14 4 8 17 19 18 19 19 18 19 19 19 15 Final Capacity 20 | 8 10 10 15 15 15 15 15 5 5 20 20 20 20 20 20 20 20 20 20 20 Final Carried 20 | 6 9 8 11 11 12 10 15 5 5 15 20 17 19 20 20 20 16 20 18 7 Class Distribution -------------------- 25% | Scavenger-Skirmisher 18% | Scavenger-Mutant 16% | Skirmisher 15% | Scavenger-Tank 9% | Mutant 7% | Tank 6% | Scavenger-Gunner Dominant Class ---------------- Mutant | -10/Materials Mutant | -10/Mines Scavenger-Mutant | -9/Materials Scavenger-Mutant | -9/Mines Scavenger-Mutant | -9/Exiles Scavenger-Mutant | -8/Mines Scavenger-Skirmisher | -8/Materials Skirmisher | -7/Factory Scavenger-Gunner | -6/Factory Scavenger-Mutant | -5/Factory Scavenger-Skirmisher | -5/Extension Scavenger-Tank | -5/Cetus Scavenger-Tank | -5/Archives Scavenger-Tank | -5/Hub_04(d) Scavenger-Tank | -4/Factory Scavenger-Tank | -4/Garrison Scavenger-Skirmisher | -3/Research Scavenger-Skirmisher | -3/Garrison Scavenger-Skirmisher | -3/Research Scavenger-Gunner | -3/Testing Resources | -11 -10 -10 -9 -9 -9 -8 -8 -7 -6 -5 -5 -5 -5 -5 -4 -4 -3 -3 -3 -3 ----------- Run | Yrd Mat Min Mat Min Exi Min Mat Fac Fac Fac Ext Cet Arc Hub Fac Gar Res Gar Res Tes Matter Collected 12926 | 213 432 23 813 . 22 40 1977 1083 650 241 1442 658 260 595 476 296 778 1403 1227 297 Remotely 1009 | . . . . . . . . . . . . . . . 476 165 368 . . . Salvage Created 17066 | . 281 42 1093 . . 79 1706 965 518 221 999 552 290 344 541 838 1793 1714 2268 2822 Parts 806 | . 25 5 82 . . 10 91 63 33 15 38 21 11 18 36 25 79 65 94 95 Haulers Intercepted 2 | . 1 . . . . . 1 . . . . . . . . . . . . . Recyclers Shooed 11 | . 1 . 1 . . . . . . . 2 . . . 1 . 4 . 2 . Parts Field Recycled . | . . . . . . . . . . . . . . . . . . . . . Retrieved Matter . | . . . . . . . . . . . . . . . . . . . . . Parts Self-Destructed . | . . . . . . . . . . . . . . . . . . . . . Prevented . | . . . . . . . . . . . . . . . . . . . . . Kills | -11 -10 -10 -9 -9 -9 -8 -8 -7 -6 -5 -5 -5 -5 -5 -4 -4 -3 -3 -3 -3 ------- Run | Yrd Mat Min Mat Min Exi Min Mat Fac Fac Fac Ext Cet Arc Hub Fac Gar Res Gar Res Tes Combat Hostiles Destroyed 303 | . 9 3 23 . . 4 34 24 12 4 10 10 4 5 11 17 25 31 36 41 Melee 1 | . . . . . . . . . . . . . . . . . . . . 1 Guns 143 | . 9 3 12 . . 4 34 3 11 4 8 7 . 3 5 11 9 6 8 6 Cannons 96 | . . . 11 . . . . 16 1 . 2 . 3 1 5 5 11 14 21 6 AOE 40 | . . . . . . . . 5 . . . 3 . . . . 3 9 6 14 Classes Destroyed 21 | . 4 . 5 . . 1 2 3 . . 1 . . . . . . . 3 2 Worker 6 | . . . . . . 1 . 2 . . . . . . . . . . 3 . Builder 17 | . . . 4 . . . . 2 . . 3 . . 1 1 . 3 . 3 . Hauler 2 | . 1 . . . . . 1 . . . . . . . . . . . . . Recycler 5 | . . . . . . . 1 . . . 3 . . . . . 1 . . . Mechanic 2 | . . . . . . . . 1 . . . . . . . . . . . 1 Operator 2 | . 1 . . . . . . . 1 . . . . . . . . . . . Watcher 3 | . . . 1 . . . . . . . . 1 . . . . 1 . . . Swarmer 53 | . 6 3 4 . . 4 6 4 5 . . 3 . . 4 8 . 4 2 . Cutter 1 | . . . . . . . . . . . . . . . . . . . 1 . Saboteur 4 | . . . . . . . . . . . . . . . . . . . . 4 Grunt 121 | . 3 . 10 . . . 16 10 1 . 2 6 . 3 1 8 12 13 17 19 Brawler 8 | . . . 1 . . . . 1 . . . . . . . . 1 1 . 4 Duelist 14 | . . . 1 . . . 3 . . . . 1 . . 1 . 1 1 . 6 Protector 3 | . . . . . . . . 1 . . . . . . . . . . . 2 Sentry 34 | . . . 7 . . . 8 1 2 . 5 . 4 2 . . 2 2 1 . Specialist 2 | . . . . . . . . . . . . . . . . . . . 2 . Hunter 16 | . . . . . . . 1 1 . . 1 . . . . . . 8 3 2 Programmer 39 | . . . . . . . . 6 4 4 . . . . 5 1 9 . 7 3 Heavy 2 | . . . . . . . . . . . . . . . . . . . 2 . Behemoth 5 | . . . . . . . . . . . 2 . . . . . . 2 1 . Executioner 1 | . . . . . . . . . . . . . . . . . . . . 1 Infiltrator 1 | . . . . . . . . . . . . . . . . . . . 1 . Best Kill Streak 27 | . 3 3 5 . . 4 4 7 2 2 7 4 2 3 5 4 6 7 12 27 Combat Bots Only 26 | . 3 3 5 . . 4 3 5 2 2 2 4 2 3 4 4 5 7 11 26 Max Kills in Single Turn 5 | . 1 1 1 . . 1 2 3 1 1 2 2 1 1 1 2 3 4 5 4 Gunslinging 1 | . . . . . . . 1 . . . . 1 . . . . . . . . Exploded 4 | . . . . . . . . 3 . . . 1 . . . . 3 4 4 3 Melee 1 | . . . . . . . . . . . . . . . . . . . . 1 Uniques/NPCs Destroyed . | . . . . . . . . . . . . . . . . . . . . . Combat | -11 -10 -10 -9 -9 -9 -8 -8 -7 -6 -5 -5 -5 -5 -5 -4 -4 -3 -3 -3 -3 -------- Run | Yrd Mat Min Mat Min Exi Min Mat Fac Fac Fac Ext Cet Arc Hub Fac Gar Res Gar Res Tes Hostile Shots Fired 2487 | . 23 14 168 . . 32 158 207 188 32 129 107 38 25 63 80 235 255 279 454 Missed 699 | . 7 3 37 . . 11 39 62 56 6 44 26 5 4 15 17 72 78 52 165 Damage Taken 32327 | . 154 95 1650 . . 179 2086 2995 1866 522 2257 1481 878 438 905 1155 2812 3641 5494 3719 Core 3242 | . 17 14 189 . . 10 125 601 223 60 416 11 . 60 61 153 186 271 229 616 Absorbed by Shields 2292 | . . . . . . . . . . . . . . . . . . . . 2292 Reduced by Siege Mode 1235 | . . . . . . . . . . . . 59 36 . . . . 107 1019 14 Redirected to Shielding 205 | . . . . . . . . . 67 . . . . . . . 19 49 70 . Ignored by Resistances 1668 | . . . . . . . 30 . . . . 115 . . . . 887 112 220 304 Regen/Repaired (Parts) 347 | . . . . . . . 241 . 19 87 . . . . . . . . . . Core Remaining (%) 65 | 100 . 87 . . . 50 77 14 73 . . . . 45 . 81 . . . . Volleys Fired 905 | . 29 6 94 . . 7 108 64 39 14 58 45 23 17 30 42 80 88 95 66 Largest 3 | . 2 2 2 . . 2 3 3 3 3 3 3 3 3 3 3 3 3 3 3 Hottest 271 | . 60 46 91 . . 46 106 171 158 130 161 165 173 206 206 206 234 256 271 239 Shots Fired 2255 | . 58 12 183 . . 15 297 163 94 36 174 82 59 51 86 129 202 233 259 122 Gun 1406 | . 58 12 115 . . 15 280 27 90 36 146 60 38 34 56 85 124 108 85 37 Cannon 779 | . . . 68 . . . 13 132 4 . 28 5 21 17 30 44 75 116 169 57 Launcher 64 | . . . . . . . . 2 . . . 17 . . . . 3 9 5 28 Special 6 | . . . . . . . 4 2 . . . . . . . . . . . . Kinetic 1268 | . 29 12 115 . . 15 280 110 67 23 119 50 45 28 26 42 56 102 100 49 Thermal 887 | . . . 68 . . . 14 48 27 13 55 15 14 23 60 87 143 122 154 44 Explosive 10 | . . . . . . . . 2 . . . . . . . . 3 5 . . Electromagnetic 85 | . 29 . . . . . . 1 . . . 17 . . . . . 4 5 29 Robot Hit Streak 32 | . 5 2 17 . . 18 12 13 14 7 14 14 22 17 18 13 13 16 32 11 Robot Miss Streak 11 | . 4 2 3 . . 4 4 3 11 3 5 5 5 4 3 4 3 8 3 4 Penetration Max 2 | . . . . . . . . . . . 1 . 1 1 1 1 2 . 1 1 Secondary Targets 17 | . 1 . 1 . . 2 6 1 . 1 1 3 . . . . . . . 1 Max Gunslinging Chain 1 | . 1 . 1 . . 1 1 1 . 1 1 1 . . . . . . . 1 Shots Hit Robots 1443 | . 32 6 114 . . 8 198 88 63 22 118 38 47 31 49 80 138 147 189 75 Core Hits 742 | . 15 3 38 . . 5 74 65 26 9 48 24 12 11 20 31 66 89 92 114 Critical Kills 16 | . . . . . . . . . . . 2 2 2 1 1 1 3 1 1 2 Critical Parts Destroyed 11 | . . . . . . . . . . . 1 1 2 3 . 1 2 . 1 . Critical Strikes 84 | . . . . . . . . 4 3 1 14 3 9 5 1 6 6 2 22 8 Burn 22 | . . . . . . . . . 2 1 6 . . 1 . 4 1 . 6 1 Meltdown 4 | . . . . . . . . . . . . . . . 1 1 . 1 1 . Destroy 29 | . . . . . . . . . . . 4 3 9 4 . 1 5 . 1 2 Blast 29 | . . . . . . . . 4 1 . 4 . . . . . . 1 14 5 Melee Attacks 62 | . . . . . . . . 3 12 10 17 17 . . 2 . . . . 1 Impact . | . . . . . . . . . . . . . . . . . . . . . Slashing 49 | . . . . . . . . . 2 10 17 17 . . 2 . . . . 1 Piercing 10 | . . . . . . . . . 10 . . . . . . . . . . . Sneak Attacks 4 | . . . . . . . . 3 . . 1 . . . . . . . . . Combat Hostiles 3 | . . . . . . . . 3 . . . . . . . . . . . . Follow-up Attacks . | . . . . . . . . . . . . . . . . . . . . . Damage Inflicted 50971 | . 462 84 2158 . . 124 3208 3432 1381 554 3236 1747 1193 834 1517 2278 5474 6549 7806 8934 Guns 21968 | . 431 84 1177 . . 124 3075 249 1293 554 2562 882 819 635 1065 1490 2970 1816 1952 790 Cannons 16341 | . . . 975 . . . 133 1980 88 . 585 27 374 199 452 788 1819 2697 4820 1404 Explosions 12528 | . 31 . . . . . . 1203 . . . 838 . . . . 675 2036 1034 6711 Melee 118 | . . . . . . . . . . . 89 . . . . . . . . 29 Ramming 16 | . . . 6 . . . . . . . . . . . . . 10 . . . Kinetic 20646 | . 273 84 1177 . . 124 3075 1392 947 393 2229 731 949 362 494 828 1377 2069 2889 1253 Thermal 19970 | . 31 . 975 . . . 133 869 434 161 918 178 244 472 1023 1450 3412 3010 4318 2342 Explosive 2839 | . . . . . . . . 764 . . . . . . . . 675 743 . 657 Electromagnetic 7382 | . 158 . . . . . . 407 . . . 838 . . . . . 727 599 4653 Impact . | . . . . . . . . . . . . . . . . . . . . . Slashing 118 | . . . . . . . . . . . 89 . . . . . . . . 29 Piercing . | . . . . . . . . . . . . . . . . . . . . . Highest Corruption 25 | . . . 3 3 3 3 4 6 3 7 7 15 15 15 8 8 6 6 13 25 Average Corruption 5 | . . . 3 3 3 3 3 3 1 4 7 14 15 15 6 8 4 6 9 15 Corruption Purged 6 | . . . . . . . . 6 . . . . . . . . . . . . Corruption Blocked . | . . . . . . . . . . . . . . . . . . . . . Effects 511 | . . . 13 2 7 1 74 49 18 15 59 40 17 31 21 25 22 39 63 15 Message Errors 121 | . . . 2 . . . 17 18 7 5 14 6 1 7 4 3 5 12 17 3 Matter Fused 116 | . . . 6 1 3 . 19 8 5 2 10 10 2 7 9 4 4 8 14 4 Heat Flow Errors 50 | . . . 3 . . . 10 5 . 2 8 3 2 3 1 1 1 2 7 2 Energy Discharges 60 | . . . 1 1 1 . 5 5 1 2 7 8 2 5 3 5 3 3 7 1 Parts Rejected 10 | . . . . . . . 4 . . . 2 . . 1 2 . . 1 . . Parts Fused 5 | . . . . . . . 2 . . . 1 1 . . . 1 . . . . Data Loss (minor) 62 | . . . 1 . 2 . 7 8 3 2 10 5 3 3 1 3 3 5 4 2 Data Loss (major) 23 | . . . . . 1 . 2 3 . 1 1 2 2 3 1 2 1 2 2 . Misfires 24 | . . . . . . 1 3 . 1 1 4 2 1 1 . 4 1 2 3 . Alerts 12 | . . . . . . . 2 . 1 . 1 . 1 . . 1 . 1 4 1 Misdirections 1 | . . . . . . . . . . . . . . . . . . . . 1 Weapon Failures 27 | . . . . . . . 3 2 . . 1 3 3 1 . 1 4 3 5 1 Overload Shots . | . . . . . . . . . . . . . . . . . . . . . Overflow Damage 640 | . . . 11 . . . . 112 . . 59 . . . 4 23 157 71 128 75 Projectiles 463 | . . . 11 . . . . 95 . . . . . . 4 23 133 49 108 40 Explosions 118 | . . . . . . . . 17 . . . . . . . . 24 22 20 35 Melee 59 | . . . . . . . . . . . 59 . . . . . . . . . Knockbacks 58 | . . . . . . . . 18 . . 2 . . 1 . . 1 4 26 6 Impact 1 | . . . . . . . . . . . . . . . . . 1 . . . Kinetic 53 | . . . . . . . . 17 . . 2 . . 1 . . . 4 24 5 Secondary 4 | . . . . . . . . 1 . . . . . . . . . . 2 1 Self-Inflicted Damage 403 | . . . 6 . . . . 72 . . . . . . . . 30 43 193 59 Shots 18 | . . . . . . . . 2 . . . . . . . . 1 4 8 3 Rammed . | . . . . . . . . . . . . . . . . . . . . . Targets Rammed 1 | . . . . . . . . . . . . . . . . . 1 . . . Kicked 1 | . . . . . . . . . . . . . . . . . 1 . . . Crushed . | . . . . . . . . . . . . . . . . . . . . . Highest Temperature 454 | . 129 40 454 . . . 276 245 211 237 233 211 252 231 199 315 108 199 244 144 Average Temperature 71 | . 70 21 137 . . . 58 78 70 61 77 42 100 39 15 66 32 66 50 39 Received Heat Transfer 5918 | . 66 . 690 . . . 900 735 135 . 348 342 99 189 33 199 679 369 867 267 Effects 6 | . . . 5 . . . 1 . . . . . . . . . . . . . Shutdowns 1 | . . . 1 . . . . . . . . . . . . . . . . . Energy Bleed 4 | . . . 3 . . . 1 . . . . . . . . . . . . . Damage (minor) 1 | . . . 1 . . . . . . . . . . . . . . . . . Siege Activations 18 | . . . . . . . . . . . . 2 2 . . . . 4 9 1 Total Turns 391 | . . . . . . . . . . . . 37 48 . . . . 99 195 12 Longest Duration 46 | . . . . . . . . . . . . 19 26 . . . . 34 46 12 Robots Corrupted 16 | . . . . . . . . . . . . . . . . . . 1 1 14 Combat Hostiles 15 | . . . . . . . . . . . . . . . . . . 1 . 14 Parts Fried 34 | . . . . . . . . 2 . . . . . . . . . 5 2 25 Impact Corruptions 1 | . . . . . . . . . . . . . . . . . . . 1 . Robots Melted 8 | . . . . . . . . . . . . . 1 1 1 1 2 1 1 . Combat Hostiles 8 | . . . . . . . . . . . . . 1 1 1 1 2 1 1 . Parts Melted 61 | . . . 5 . . . . . 4 2 3 . . 1 9 10 6 7 9 5 Heat Transferred 27406 | . 50 . 1702 . . . 222 1125 1050 400 2587 296 370 792 1427 2495 3811 2849 5486 2744 Parts Sabotaged 2 | . . . . . . . . . . . . . . . . . . . 2 . Parts Stolen . | . . . . . . . . . . . . . . . . . . . . . Parts Stripped . | . . . . . . . . . . . . . . . . . . . . . Power Chain Reactions 16 | . 1 . . . . . . 2 . . . 1 . . . . . 3 3 6 Alert | -11 -10 -10 -9 -9 -9 -8 -8 -7 -6 -5 -5 -5 -5 -5 -4 -4 -3 -3 -3 -3 ------- Run | Yrd Mat Min Mat Min Exi Min Mat Fac Fac Fac Ext Cet Arc Hub Fac Gar Res Gar Res Tes Peak Influence 2520 | . 213 85 379 147 . 95 608 766 467 68 265 223 116 186 226 456 510 1326 1326 2520 Initial 745 | . . . 33 147 . . 37 276 382 37 5 28 22 40 91 121 256 382 745 745 Average 259 | . 51 18 247 147 . 72 197 225 112 25 123 75 99 66 80 307 257 878 797 2005 Maximum Alert Level 5 | . 1 . 1 . . . 2 3 2 . 1 1 . . 1 2 2 4 4 5 Low Security (%) 59 | 100 94 100 29 100 . 100 63 52 87 100 84 92 100 100 97 24 19 . . . Level 1 19 | . 5 . 70 . . . 14 29 4 . 15 7 . . 2 37 71 6 . . Level 2 12 | . . . . . . . 22 17 7 . . . . . . 37 8 44 19 . Level 3 4 | . . . . . . . . . . . . . . . . . . 8 70 . Level 4 2 | . . . . . . . . . . . . . . . . . . 40 9 . Level 5 . | . . . . . . . . . . . . . . . . . . . . . High Security . | . . . . . . . . . . . . . . . . . . . . . Max Security 1 | . . . . . . . . . . . . . . . . . . . . 99 Squads Dispatched 71 | . 1 . 1 . . . 5 16 5 4 1 1 . 1 4 . 7 . 13 12 Investigation 9 | . 1 . . . . . 1 1 1 1 . 1 . 1 . . 2 . . . Extermination 23 | . . . . . . . . 8 4 3 . . . . 2 . 3 . 3 . Reinforcement 18 | . . . 1 . . . 3 1 . . 1 . . . 2 . 1 . 9 . Assault 18 | . . . . . . . 1 3 . . . . . . . . 1 . 1 12 Garrison 3 | . . . . . . . . 3 . . . . . . . . . . . . Intercept . | . . . . . . . . . . . . . . . . . . . . . Searches Triggered . | . . . . . . . . . . . . . . . . . . . . . Construction Impeded 2 | . . . . . . . . . . . . . . . . . . . 2 . Haulers Reinforced . | . . . . . . . . . . . . . . . . . . . . . Active Scanning Responses . | . . . . . . . . . . . . . . . . . . . . . Cargo Convoy Interrupts 1 | . . . . . . . . . . . . . . . . . . . 1 . Stealth | -11 -10 -10 -9 -9 -9 -8 -8 -7 -6 -5 -5 -5 -5 -5 -4 -4 -3 -3 -3 -3 --------- Run | Yrd Mat Min Mat Min Exi Min Mat Fac Fac Fac Ext Cet Arc Hub Fac Gar Res Gar Res Tes Distress Signals 20 | . 1 . 1 . . . 5 2 1 . 3 1 . 2 1 . . . 3 . Communications Jammed 67 | . . . . . . . . . . . . . . . . . 65 . . 2 Distress Signals 66 | . . . . . . . . . . . . . . . . . 64 . . 2 Times Spotted 541 | . 17 4 59 . . 4 77 50 37 5 25 16 6 8 17 17 33 32 55 79 Peak Tracking Total 19 | . 4 3 8 . . 4 7 9 5 2 4 5 2 3 5 4 5 8 12 19 Tactical Retreats 28 | . . 1 7 . . . 1 4 6 . 1 1 . . 2 . 1 1 3 . Traps | -11 -10 -10 -9 -9 -9 -8 -8 -7 -6 -5 -5 -5 -5 -5 -4 -4 -3 -3 -3 -3 ------- Run | Yrd Mat Min Mat Min Exi Min Mat Fac Fac Fac Ext Cet Arc Hub Fac Gar Res Gar Res Tes Traps Triggered 31 | . 1 . . . . . 5 5 2 1 4 . . . 1 3 1 5 1 2 Indirectly 6 | . . . . . . . . . . . . . . . . . . 4 1 1 Trap Hack Attempts 31 | . . . . . . . . 31 . . . . . . . . . . . . Triggered . | . . . . . . . . . . . . . . . . . . . . . Disarmed 1 | . . . . . . . . 1 . . . . . . . . . . . . Reprogrammed 3 | . . . . . . . . 3 . . . . . . . . . . . . Reused . | . . . . . . . . . . . . . . . . . . . . . Traps Extracted . | . . . . . . . . . . . . . . . . . . . . . Installed . | . . . . . . . . . . . . . . . . . . . . . Triggered 2 | . . . . . . . . . . . . . . . . . . 1 1 . Machines | -11 -10 -10 -9 -9 -9 -8 -8 -7 -6 -5 -5 -5 -5 -5 -4 -4 -3 -3 -3 -3 ---------- Run | Yrd Mat Min Mat Min Exi Min Mat Fac Fac Fac Ext Cet Arc Hub Fac Gar Res Gar Res Tes Machines Disabled 35 | . 1 . . . . . 1 5 . 1 5 8 . 2 2 . . 5 1 4 Max in Single Turn 4 | . 1 . . . . . 1 3 . 1 1 4 . 1 1 . . 1 1 2 Garrison Access 4 | . . . . . . . 1 1 2 . . . . . . . . . . . Machines Repaired . | . . . . . . . . . . . . . . . . . . . . . Machines Dismantled 2 | . . . . . . . 1 1 . . . . . . . . . . . . Machines Sabotaged . | . . . . . . . . . . . . . . . . . . . . . Overloaded Fab Kills . | . . . . . . . . . . . . . . . . . . . . . Hacking | -11 -10 -10 -9 -9 -9 -8 -8 -7 -6 -5 -5 -5 -5 -5 -4 -4 -3 -3 -3 -3 --------- Run | Yrd Mat Min Mat Min Exi Min Mat Fac Fac Fac Ext Cet Arc Hub Fac Gar Res Gar Res Tes Machines Accessed 90 | . 8 . 9 . 1 . 11 18 16 5 6 3 1 2 3 1 3 1 2 . Terminals 65 | . 8 . 8 . . . 7 10 10 3 6 3 . 2 2 1 2 1 2 . Fabricators . | . . . . . . . . . . . . . . . . . . . . . Repair Stations 5 | . . . . . . . 2 1 1 1 . . . . . . . . . . Recycling Units 11 | . . . 1 . . . 1 5 3 1 . . . . . . . . . . Scanalyzers . | . . . . . . . . . . . . . . . . . . . . . Garrison Access 7 | . . . . . . . 1 2 2 . . . . . 1 . 1 . . . Total Hacks 216 | . 25 . 19 . 1 . 27 36 46 12 9 9 10 7 5 2 4 1 3 . Successful 114 | . 16 . 7 . 1 . 17 14 27 8 3 3 10 3 2 . 1 1 1 . Failed 101 | . 8 . 12 . . . 10 22 19 4 6 6 . 4 3 2 3 . 2 . Catastrophic 14 | . 1 . 3 . . . . 5 . . 1 1 . . . . 2 . 1 . Database Lockouts 1 | . 1 . . . . . . . . . . . . . . . . . . . Manual 121 | . 19 . 15 . 1 . 16 24 28 6 3 . . 1 2 . 3 . 3 . Terminals 155 | . 25 . 17 . . . 20 17 30 9 9 9 . 7 3 2 3 1 3 . Fabricators . | . . . . . . . . . . . . . . . . . . . . . Repair Stations 12 | . . . . . . . 4 2 4 2 . . . . . . . . . . Recycling Units 28 | . . . 2 . . . 2 14 9 1 . . . . . . . . . . Scanalyzers . | . . . . . . . . . . . . . . . . . . . . . Garrison Access 10 | . . . . . . . 1 3 3 . . . . . 2 . 1 . . . Terminal Hacks 53 | . 9 . 2 . 1 . 6 3 9 4 3 3 10 2 . . . 1 . . Record 25 | . . . . . . . 3 2 3 2 . 3 10 2 . . . . . . Robot Analysis 1 | . 1 . . . . . . . . . . . . . . . . . . . Prototype ID Bank 3 | . 3 . . . . . . . . . . . . . . . . . . . Open Door 3 | . . . . . . . . . . . 3 . . . . . . . . . Level Access Points 2 | . . . . . . . 1 . 1 . . . . . . . . . . . Branch Access Points 1 | . . . . . . . . . 1 . . . . . . . . . . . Emergency Access Points 1 | . . . . . . . . . . . . . . . . . . 1 . . Terminal Index 6 | . 1 . 1 . . . 1 1 1 1 . . . . . . . . . . Alert Level 5 | . 1 . 1 . . . 1 . 1 1 . . . . . . . . . . Unreport Threat 2 | . 1 . . . . . . . 1 . . . . . . . . . . . Hauler Manifests 1 | . 1 . . . . . . . . . . . . . . . . . . . Registered Components 2 | . 1 . . . . . . . 1 . . . . . . . . . . . Derelict Proto ID Bank 1 | . . . . . 1 . . . . . . . . . . . . . . . Fabricator Hacks . | . . . . . . . . . . . . . . . . . . . . . Repair Station Hacks 8 | . . . . . . . 4 . 2 2 . . . . . . . . . . Scan Component 4 | . . . . . . . 2 . 1 1 . . . . . . . . . . Repair 4 | . . . . . . . 2 . 1 1 . . . . . . . . . . Recycling Unit Hacks 4 | . . . . . . . . 2 2 . . . . . . . . . . . Report Inventory 4 | . . . . . . . . 2 2 . . . . . . . . . . . Scanalyzer . | . . . . . . . . . . . . . . . . . . . . . Garrison Access Hacks 5 | . . . . . . . 1 . 2 . . . . . 1 . 1 . . . Unlock Access 2 | . . . . . . . . . . . . . . . 1 . 1 . . . Seal Access 3 | . . . . . . . 1 . 2 . . . . . . . . . . . Unauthorized Hacks 44 | . 7 . 5 . . . 6 9 12 2 . . . 1 1 . . . 1 . Terminals 28 | . 7 . 3 . . . 4 1 8 2 . . . 1 1 . . . 1 . Track 2 | . 2 . . . . . . . . . . . . . . . . . . . Assimilate 1 | . . . . . . . . . 1 . . . . . . . . . . . Botnet 25 | . 5 . 3 . . . 4 1 7 2 . . . 1 1 . . . 1 . Fabricators . | . . . . . . . . . . . . . . . . . . . . . Repair Stations . | . . . . . . . . . . . . . . . . . . . . . Recycling Units 15 | . . . 2 . . . 2 7 4 . . . . . . . . . . . Reject 7 | . . . 1 . . . 1 3 2 . . . . . . . . . . . Mask 8 | . . . 1 . . . 1 4 2 . . . . . . . . . . . Scanalyzers . | . . . . . . . . . . . . . . . . . . . . . Garrison Access 1 | . . . . . . . . 1 . . . . . . . . . . . . Restock 1 | . . . . . . . . 1 . . . . . . . . . . . . Data Cores Recovered 2 | . 1 . . . . . . . 1 . . . . . . . . . . . Used 1 | . 1 . . . . . . . . . . . . . . . . . . . Hacking Detections 74 | . 7 . 9 . . . 10 15 10 5 4 3 . 2 3 1 3 . 2 . Full Trace Events 6 | . . . . . . . . 1 1 1 . 1 . 1 . . 1 . . . Feedback Events . | . . . . . . . . . . . . . . . . . . . . . Feedback Blocked . | . . . . . . . . . . . . . . . . . . . . . Robot Schematics Acquired . | . . . . . . . . . . . . . . . . . . . . . Robots Built . | . . . . . . . . . . . . . . . . . . . . . Authchips . | . . . . . . . . . . . . . . . . . . . . . Time . | . . . . . . . . . . . . . . . . . . . . . Total Robot Build Rating . | . . . . . . . . . . . . . . . . . . . . . Part Schematics Acquired . | . . . . . . . . . . . . . . . . . . . . . Parts Built . | . . . . . . . . . . . . . . . . . . . . . Authchips . | . . . . . . . . . . . . . . . . . . . . . Time . | . . . . . . . . . . . . . . . . . . . . . Total Part Build Rating . | . . . . . . . . . . . . . . . . . . . . . Parts Repaired 4 | . . . . . . . 2 . 1 1 . . . . . . . . . . Time 139 | . . . . . . . 76 . 13 50 . . . . . . . . . . Parts Recycled . | . . . . . . . . . . . . . . . . . . . . . Recycled Matter . | . . . . . . . . . . . . . . . . . . . . . Retrieved Matter . | . . . . . . . . . . . . . . . . . . . . . Retrieved Components . | . . . . . . . . . . . . . . . . . . . . . Parts Scanalyzed . | . . . . . . . . . . . . . . . . . . . . . Part Schematics Acquired . | . . . . . . . . . . . . . . . . . . . . . Parts Damaged . | . . . . . . . . . . . . . . . . . . . . . Bothacking | -11 -10 -10 -9 -9 -9 -8 -8 -7 -6 -5 -5 -5 -5 -5 -4 -4 -3 -3 -3 -3 ------------ Run | Yrd Mat Min Mat Min Exi Min Mat Fac Fac Fac Ext Cet Arc Hub Fac Gar Res Gar Res Tes Used RIF Installer . | . . . . . . . . . . . . . . . . . . . . . Robots Hacked . | . . . . . . . . . . . . . . . . . . . . . Non-combat . | . . . . . . . . . . . . . . . . . . . . . Combat . | . . . . . . . . . . . . . . . . . . . . . Robot Hacks Applied . | . . . . . . . . . . . . . . . . . . . . . Relay Couplers Released 2 | . . . . . . . . 2 . . . . . . . . . . . . Machine Destruction 2 | . . . . . . . . 2 . . . . . . . . . . . . Fabnet Peak Effective % . | . . . . . . . . . . . . . . . . . . . . . Robots Rewired 8 | . . . . . . . . 2 . . 6 . . . . . . . . . Allies Hacked . | . . . . . . . . . . . . . . . . . . . . . Hacks Repelled . | . . . . . . . . . . . . . . . . . . . . . Allies | -11 -10 -10 -9 -9 -9 -8 -8 -7 -6 -5 -5 -5 -5 -5 -4 -4 -3 -3 -3 -3 -------- Run | Yrd Mat Min Mat Min Exi Min Mat Fac Fac Fac Ext Cet Arc Hub Fac Gar Res Gar Res Tes Total Allies 17 | . . . . . . . 3 4 1 . 9 . . . . . . . . . Largest Group 8 | . . . . . . . 2 3 1 1 8 1 . . . . . . . . Highest-Rated Group 248 | . . . . . . . 28 61 27 10 248 39 . . . . . . . . Highest-Rated Ally 39 | . . . . . . . 18 30 27 10 39 39 . . . . . . . . Total Orders 44 | . . . . . . . 8 16 6 4 2 . . . . . 1 . 7 . STAY 8 | . . . . . . . . 3 2 2 1 . . . . . . . . . ROAM 1 | . . . . . . . . 1 . . . . . . . . . . . . FOLLOW 9 | . . . . . . . 1 4 1 2 1 . . . . . . . . . GUARD 1 | . . . . . . . 1 . . . . . . . . . . . . . TUNNEL 14 | . . . . . . . 6 8 . . . . . . . . . . . . EXPLORE 5 | . . . . . . . . . 1 . . . . . . . 1 . 3 . RETURN 6 | . . . . . . . . . 2 . . . . . . . . . 4 . Ally Attacks 151 | . . . . . . . 13 23 . . 96 19 . . . . . . . . Total Damage 2804 | . . . . . . . 238 631 . . 1712 223 . . . . . . . . Kills 26 | . . . . . . . 2 4 . . 16 4 . . . . . . . . Allies Corrupted 1 | . . . . . . . . 1 . . . . . . . . . . . . Allies Melted 1 | . . . . . . . . . . . 1 . . . . . . . . . Field Lobotomies 5 | . . . . . . . 3 2 . . . . . . . . . . . . Intel | -11 -10 -10 -9 -9 -9 -8 -8 -7 -6 -5 -5 -5 -5 -5 -4 -4 -3 -3 -3 -3 ------- Run | Yrd Mat Min Mat Min Exi Min Mat Fac Fac Fac Ext Cet Arc Hub Fac Gar Res Gar Res Tes Robot Analysis Total 1 | . 1 . . . . . . . . . . . . . . . . . . . Derelict Logs Recovered . | . . . . . . . . . . . . . . . . . . . . . Drone Launches 11 | . . . . . . . . . 2 . . . . . . . 3 . 6 . Drone Recoveries 8 | . . . . . . . . . 2 . . . . . . . . . 6 . Exploration | -11 -10 -10 -9 -9 -9 -8 -8 -7 -6 -5 -5 -5 -5 -5 -4 -4 -3 -3 -3 -3 ------------- Run | Yrd Mat Min Mat Min Exi Min Mat Fac Fac Fac Ext Cet Arc Hub Fac Gar Res Gar Res Tes Turns Passed 29494 | 76 1125 273 2247 156 569 68 3929 5161 3330 1567 1716 895 395 683 1426 667 1513 1681 1722 295 Spaces Moved 14963 | 45 705 161 1078 97 355 24 1592 2744 2176 828 984 478 166 286 747 291 687 789 676 54 Core 61 | 7 . . . . . . . 54 . . . . . . . . . . . . Treads 9362 | . 170 161 1078 97 355 24 1592 2690 689 . 44 48 166 286 747 59 . 431 676 49 Legs 3407 | 38 531 . . . . . . . 1307 254 . . . . . 232 687 358 . . Wheels 2129 | . . . . . . . . . 180 574 940 430 . . . . . . . 5 Hover 4 | . 4 . . . . . . . . . . . . . . . . . . . Flight . | . . . . . . . . . . . . . . . . . . . . . Fastest Speed 50 | 50 56 160 160 160 160 160 160 50 100 115 108 135 160 160 156 120 117 118 158 155 Average Speed 152 | 134 136 160 160 160 160 160 163 167 133 146 128 138 160 194 157 148 140 143 158 227 Slowest Speed 250 | 190 190 160 240 160 160 160 240 170 200 190 240 240 160 240 160 235 190 190 161 250 Overloaded Moves . | . . . . . . . . . . . . . . . . . . . . . Propulsion Burnouts . | . . . . . . . . . . . . . . . . . . . . . Robots Hopped . | . . . . . . . . . . . . . . . . . . . . . Cave-ins Triggered . | . . . . . . . . . . . . . . . . . . . . . Exploration Rate (%) 45 | 4 87 35 74 26 70 10 76 41 50 16 80 80 89 33 20 36 17 65 22 15 Regions Visited 20 Branch Regions 9 Pre-discovered Areas . | . . . . . . . . . . . . . . . . . . . . . Known Exits Taken 10 | . . . . . . . 1 1 1 1 1 1 1 1 1 . 1 . . . Unknown Exits Taken 8 | 1 1 1 1 1 1 1 . . . . . . . . . . . . 1 . Scrap Searched 1 | . . 1 . . . . . . . . . . . . . . . . . . Spaces Dug 43 | . . . . . . . 1 1 6 10 1 . . . 6 . 8 7 3 . Terrain Destroyed 468 | . 5 . . . . . 2 34 7 10 13 8 12 6 23 13 62 112 65 96 Melee 19 | . . . . . . . . . 6 10 1 . . . 2 . . . . . Projectile 203 | . . . . . . . 2 11 1 . 12 8 12 6 21 13 28 30 36 23 AOE 246 | . 5 . . . . . . 23 . . . . . . . . 34 82 29 73 Terrain Rammed 1 | . . . 1 . . . . . . . . . . . . . . . . . Walls Destroyed . | . . . . . . . . . . . . . . . . . . . . . Machines Disabled . | . . . . . . . . . . . . . . . . . . . . . Actions | -11 -10 -10 -9 -9 -9 -8 -8 -7 -6 -5 -5 -5 -5 -5 -4 -4 -3 -3 -3 -3 --------- Run | Yrd Mat Min Mat Min Exi Min Mat Fac Fac Fac Ext Cet Arc Hub Fac Gar Res Gar Res Tes Total 19948 | 57 812 167 1421 97 357 38 2682 3151 2505 1134 1277 610 249 384 926 440 1070 1210 1204 157 Wait 2944 | 1 38 . 172 . . . 867 207 197 248 71 32 44 36 124 73 229 251 351 3 Move 14941 | 44 704 160 1077 96 354 23 1591 2743 2175 827 983 477 165 285 747 290 686 785 675 54 Hop . | . . . . . . . . . . . . . . . . . . . . . Pick Up 178 | 6 11 . 14 . 2 . 14 12 11 12 24 6 5 10 3 4 10 17 16 1 Fast Attach 150 | 6 3 . 7 . . . 10 5 28 7 13 3 2 8 5 5 18 14 13 3 Attach 112 | . . 1 4 . . 1 5 8 13 1 12 3 3 3 2 3 11 10 17 15 Detach 20 | . 1 . 1 . . . . 1 5 . 2 . . . . 1 . 2 5 2 Swap 234 | . 12 . 28 1 . 5 46 28 7 6 15 15 3 7 8 2 15 18 14 4 Drop 229 | . 14 . 23 . 1 2 23 19 18 4 19 12 4 18 5 5 20 24 18 . Fire 905 | . 29 6 94 . . 7 108 64 39 14 58 45 23 17 30 42 80 88 95 66 Melee 62 | . . . . . . . . 3 12 10 17 17 . . 2 . . . . 1 Ram 1 | . . . 1 . . . . . . . . . . . . . . . . . Kick 1 | . . . . . . . . . . . . . . . . . 1 . . . Crush . | . . . . . . . . . . . . . . . . . . . . . Escape Stasis 48 | . . . . . . . . . . 5 19 . . . . 15 . 1 . 8 Rewire 64 | . . . . . . . . 20 . . 44 . . . . . . . . . Trap 31 | . . . . . . . . 31 . . . . . . . . . . . . Miscellaneous 28 | . . . . . . . 18 10 . . . . . . . . . . . . Route ------- -11/Scrapyard -10/Materials (discovered 4 exits: *Mat x2 / [*Min x2]) -10/Mines -9/Materials (discovered 2 exits: [*Min] / [*Sto]) -9/Mines -9/Exiles -8/Mines -8/Materials (discovered 3 exits: *Fac x3) -7/Factory (discovered 4 exits: *Fac x3 / [*Low]) -6/Factory (discovered 6 exits: *Fac x4 / Low x2) -5/Factory (discovered 2 exits: *Upp / *Ext) -5/Extension (discovered 3 exits: *Fac x2 / *Cet) -5/Cetus -5/Archives (discovered 3 exits: *Fac / *Hub x2) -5/Hub_04(d) -4/Factory -4/Garrison -3/Research -3/Garrison (discovered 3 exits: *Res x3) -3/Research (discovered 2 exits: [*Res] / [*Tes]) -3/Testing History --------- Turn | Location | Event 16 | -11/Scrapyard | Discovered new exit (range 16) 77 | -11/Scrapyard | Entered Materials 331 | -10/Materials | Build established: Mutant 334 | -10/Materials | Discovered new exit (range 7) 488 | -10/Materials | Discovered new exit (range 5) 637 | -10/Materials | Discovered new exit (range 5) 816 | -10/Materials | Central database locked down 894 | -10/Materials | Discovered new exit (range 16) 1202 | -10/Materials | Entered Mines 1279 | -10/Mines | Discovered new exit (range 5) 1475 | -10/Mines | Entered Materials 1475 | -9/Materials | Evolved 2 slots: Propulsion x1, Utility x1 1818 | -9/Materials | Discovered new exit (range 9) 2200 | -9/Materials | Build established: Scavenger-Mutant 2698 | -9/Materials | Discovered new exit (range 7) 3722 | -9/Materials | Entered Mines 3870 | -9/Mines | Deemed a non-threat by the Exiles lab entrance 3870 | -9/Mines | Discovered new exit (range 6) 3878 | -9/Mines | Entered Exiles 3918 | -9/Exiles | Met 8R-AWN 3946 | -9/Exiles | Met EX-HEX 4022 | -9/Exiles | Met EX-DEC 4042 | -9/Exiles | Met EX-BIN 4064 | -9/Exiles | Aligned with FarCom system 4066 | -9/Exiles | Given EX-Vault access code 4104 | -9/Exiles | Opened EX-Vault 4114 | -9/Exiles | Found Field Lobotomy Kit 4148 | -9/Exiles | Warned to stay clear of 0b10 Research branches 4433 | -9/Exiles | Discovered new exit (range 11) 4447 | -9/Exiles | Left Exiles lab with Field Lobotomy Kit 4447 | -9/Exiles | Entered Mines 4484 | -8/Mines | Discovered new exit (range 6) 4515 | -8/Mines | Entered Materials 4515 | -8/Materials | Evolved 2 slots: Utility x1, Weapon x1 5302 | -8/Materials | Discovered new exit (range 16) 5313 | -8/Materials | Build established: Skirmisher 5599 | -8/Materials | Identified exit to Factory 5801 | -8/Materials | Assimilated T-07 Excavator with FLK Orb 6092 | -8/Materials | Build established: Scavenger-Skirmisher 7320 | -8/Materials | Build established: Tank 7968 | -8/Materials | Repaired Hrd. Medium Armor Plating 8115 | -8/Materials | First assault squad dispatched 8153 | -8/Materials | Assimilated B-36 Bruiser with FLK Orb 8156 | -8/Materials | Assimilated L-31 Rogue with FLK Orb 8288 | -8/Materials | Repaired Reflective Plating 8444 | -8/Materials | Entered Factory 8444 | -7/Factory | Accompanied by 1 ally 8444 | -7/Factory | Evolved 2 slots: Propulsion x1, Utility x1 8957 | -7/Factory | Build established: Mutant 9342 | -7/Factory | Build established: Skirmisher 9522 | -7/Factory | Discovered new exit (range 4) 10061 | -7/Factory | Discovered new exit (range 12) 10168 | -7/Factory | Discovered new exit (range 6) 10482 | -7/Factory | Discovered new exit (range 9) 11736 | -7/Factory | Garrison activated, responded to threat 12042 | -7/Factory | Build established: Tank 12266 | -7/Factory | Identified exit to Factory 12421 | -7/Factory | Build established: Skirmisher 12812 | -7/Factory | Build established: Tank 13244 | -7/Factory | First assault squad dispatched 13561 | -7/Factory | Assimilated B-48 Gladiator with FLK Orb 13564 | -7/Factory | Assimilated L-41 Fighter with FLK Orb 13573 | -7/Factory | Core integrity fell below 50% 13580 | -7/Factory | Core integrity fell below 20% 13605 | -7/Factory | Entered another Factory area 13605 | -6/Factory | Accompanied by 1 ally 13605 | -6/Factory | Evolved 2 slots: Utility x2 13607 | -6/Factory | Lost 9 parts (1p3n2u3w) 13852 | -6/Factory | Build established: Mutant 13953 | -6/Factory | Identified exit to Lower Caves 14165 | -6/Factory | Build established: Skirmisher 14553 | -6/Factory | Spotted B-75 Beast 14916 | -6/Factory | Build established: Scavenger-Gunner 15829 | -6/Factory | Lost 3 parts (1n2u) 16033 | -6/Factory | Repaired Structural Scanner 16093 | -6/Factory | Build established: Scavenger-Mutant 16776 | -6/Factory | Identified exit to Factory 16935 | -6/Factory | Entered another Factory area 16935 | -5/Factory | Accompanied by 1 ally 16935 | -5/Factory | Evolved 2 slots: Propulsion x1, Utility x1 17659 | -5/Factory | Repaired Plasma Rifle 17704 | -5/Factory | Discovered new exit (range 4) 17711 | -5/Factory | Identified exit to Upper Caves 18489 | -5/Factory | Discovered new exit (range 12) 18501 | -5/Factory | Identified exit to Extension 18502 | -5/Factory | Entered Extension 18523 | -5/Extension | Disrupted transfer network 18761 | -5/Extension | Rescued a captive Derelict 18762 | -5/Extension | Rescued a captive Derelict 18905 | -5/Extension | P-70 Sage assimilated allied YG-WDK(b) 18996 | -5/Extension | Build established: Scavenger-Skirmisher 19469 | -5/Extension | Spotted B-75 Beast 19529 | -5/Extension | Destroyed B-75 Beast 19549 | -5/Extension | Spotted B-75 Beast 19591 | -5/Extension | Destroyed B-75 Beast 19593 | -5/Extension | Lost 3 allies 19618 | -5/Extension | Lost 13 parts (1p6n5u1w) 19754 | -5/Extension | Discovered new exit (range 3) 19755 | -5/Extension | Identified exit to Factory 19897 | -5/Extension | Discovered exit to Factory (range 16) 19897 | -5/Extension | Discovered new exit (range 16) 19921 | -5/Extension | Identified exit to Cetus 20026 | -5/Extension | Rescued a captive Derelict 20218 | -5/Extension | Entered Cetus 20218 | -5/Cetus | Accompanied by 1 ally 20237 | -5/Cetus | Spotted Cetus Guard 20237 | -5/Cetus | Spotted Cetus Guard 20241 | -5/Cetus | Spotted Cetus Guard 20243 | -5/Cetus | Allies destroyed Cetus Guard 20245 | -5/Cetus | Spotted Cetus Guard 20255 | -5/Cetus | Allies destroyed Cetus Guard 20259 | -5/Cetus | Allies destroyed Cetus Guard 20281 | -5/Cetus | System corruption reached 10% 20436 | -5/Cetus | Discovered new exit (range 16) 20455 | -5/Cetus | Identified exit to Archives 20534 | -5/Cetus | Build established: Scavenger-Tank 20547 | -5/Cetus | Cetus Manufacturing Module disabled 20968 | -5/Cetus | Security sweep announced 21100 | -5/Cetus | Lost 4 parts (1p2u1w) 21113 | -5/Cetus | Entered Archives 21350 | -5/Archives | Discovered new exit (range 16) 21363 | -5/Archives | Unable to access archive contents 21388 | -5/Archives | Unable to access archive contents 21395 | -5/Archives | Discovered exit to Factory (range 13) 21417 | -5/Archives | Unable to access archive contents 21433 | -5/Archives | Discovered new exit (range 15) 21454 | -5/Archives | Identified exit to Hub_04(d) 21508 | -5/Archives | Entered Hub_04(d) 21955 | -5/Hub_04(d) | Core integrity fell below 50% 22174 | -5/Hub_04(d) | Discovered exit to Factory (range 3) 22191 | -5/Hub_04(d) | Entered Factory 22191 | -4/Factory | Evolved 2 slots: Utility x2 22231 | -4/Factory | Found Unknown Device 22231 | -4/Factory | Identified Quantum Capacitor 23617 | -4/Factory | Identified exit to Garrison 23617 | -4/Factory | Entered Garrison 23763 | -4/Garrison | Triggered checkpoint 24019 | -4/Garrison | Triggered checkpoint 24118 | -4/Garrison | Lost 3 parts (1n2u) 24238 | -4/Garrison | Discovered new exit (range 10) 24247 | -4/Garrison | Identified exit to Research 24284 | -4/Garrison | Entered Research 24284 | -3/Research | Evolved 2 slots: Power x1, Propulsion x1 24653 | -3/Research | Build established: Scavenger-Skirmisher 25040 | -3/Research | Found Prototype Device 25040 | -3/Research | Identified Adv. EM Disruption Field 25094 | -3/Research | Lost 3 allies 25184 | -3/Research | Lost 3 parts (3n) 25239 | -3/Research | Found Gamma Bomb Array 25345 | -3/Research | Build established: Scavenger-Tank 25736 | -3/Research | Lost 7 parts (2p3n1u1w) 25784 | -3/Research | First assault squad dispatched 25790 | -3/Research | Identified exit to Garrison 25797 | -3/Research | Entered Garrison 25809 | -3/Garrison | Spotted B-86 Titan 25835 | -3/Garrison | Destroyed B-86 Titan 25865 | -3/Garrison | Lost 3 parts (2u1w) 25939 | -3/Garrison | Build established: Scavenger-Skirmisher 26039 | -3/Garrison | Lost 4 parts (1n1u2w) 26472 | -3/Garrison | Spotted B-86 Titan 26534 | -3/Garrison | Destroyed B-86 Titan 26546 | -3/Garrison | Found Hvy. Reflective Plating 26593 | -3/Garrison | Triggered checkpoint 26660 | -3/Garrison | Triggered checkpoint 26702 | -3/Garrison | Triggered checkpoint 26734 | -3/Garrison | Lost 5 parts (2p3u) 26756 | -3/Garrison | Destroyed 7 combat bots 26948 | -3/Garrison | Build established: Scavenger-Tank 27012 | -3/Garrison | Discovered new exit (range 10) 27026 | -3/Garrison | Attempted to access garrison exit controls, blocked by remote lockdown 27064 | -3/Garrison | Triggered checkpoint 27277 | -3/Garrison | Discovered new exit (range 11) 27295 | -3/Garrison | Attempted to access garrison exit controls, blocked by remote lockdown 27397 | -3/Garrison | Build established: Scavenger-Skirmisher 27424 | -3/Garrison | Discovered new exit (range 10) 27478 | -3/Garrison | Entered Research 27769 | -3/Research | First assault squad dispatched 28058 | -3/Research | Lost 4 parts (1u3w) 28233 | -3/Research | Spotted B-86 Titan 28257 | -3/Research | Destroyed B-86 Titan 28318 | -3/Research | Discovered new exit (range 30) 28391 | -3/Research | System corruption reached 10% 28416 | -3/Research | Specialist reinforcements revealed to be Infiltrators 28786 | -3/Research | Cargo convoy interrupted 29030 | -3/Research | Discovered new exit (range 10) 29036 | -3/Research | Core integrity fell below 50% 29077 | -3/Research | Destroyed 11 combat bots 29200 | -3/Research | Entered Testing 29201 | -3/Testing | Maximum security lockdown engaged 29417 | -3/Testing | Lost 5 parts (1n2u2w) 29421 | -3/Testing | Destroyed 26 combat bots 29451 | -3/Testing | Spotted Executioner 29452 | -3/Testing | Spotted Executioner 29454 | -3/Testing | Spotted Investigator 29455 | -3/Testing | Scanned by Researcher 29476 | -3/Testing | Destroyed Executioner 29478 | -3/Testing | Core integrity fell below 20% 29495 | -3/Testing | Destroyed by G-73 Enforcer with Phase Gun Last Messages --------------- 29489_ Slug penetrates Wall. 29489_ Railgun destroyed. 29489_ Adv. Plasma Rifle destroyed. 29489_ Slug penetrates H-77 Assassin. 29489_ Penetrated by Slug. 29491_ Stasis bubble strength at 159. 29491_ Slug penetrates Repair Station. 29491_ Gamma Rifle destroyed. 29491_ Held in stasis. 29491_ Investigator is analyzing... 29491_ Terminal disabled. 29491_ Adv. Transmission Jammer destroyed. 29492_ Slug penetrates Repair Station. 29492_ Slug penetrates Investigator. 29492_ Penetrated by Slug. 29493_ L-61 Swordsman destroyed. 29493_ Penetrated by Slug. 29494_ Held in stasis. 29494_ Investigator is analyzing... 29495_ M-36 Artificer repairs Investigator. Map ----- +----------------------------------------------------+ | ?????????????????????????????????????????????????? | | ?????????????????????????????????????????????????? | | ?????????????????????????????????????????????????? | | ?????????????????????????????????????????????????? | | ?##??????????????????????????????????????????????? | | """"""#?????????????????? ?????????????????????? | | ""S"""#?????????????????? +????????????????????? | | """###????#########??? #????????????????????? | | #??### ??? #????????????????????? | | #??#"" ??? ########?????????????? | | #??#"" ? % #?????????????? | | #??#"T "" #?"???????????? | | #??#"" m % # "???????????? | | #???"" !g / ????????????? | | ?????# #**%! ##????????????? | | ? ????????? !%%![!! ###??????????? | | ###+############ # #[===%[ m #??????????? | | * =h!=!!=hm * #???????????? | | / !i%[%!%c =#####?????????? | | % / !%%%=% h%==% ???????? | | [ ^ * !*%! pp%[% ##????????? | | "%[!""##"###"T#######; / =/ [*! #????????? | | "[%%% ####?#""#?### Eph! % # ?????????? | | # %###????##### "" *=%=% =# #?????????? | | ###"#??????????#""" " %%/==! #?????????? | | ??###??????????#"T %=@==! #????????? | | ???????????????#"" ==%!* [ == #?????????? | | ???????????????# "" * ; # ##?????????? | | ???????????????#### ""* [= ; "R"" #?#??????????? | | ??????????????????# ""R" ! # """" #????????????? | | ??????????????????# """"[ ; #????????????? | | ??????????????????###;###;;;?#;;###??????????????? | | ????????????????????##??# #? ##????????????????? | | ???????????????????????? #??#?????????????????? | | ????????????????????????# #????????????????????? | | ????????????????????????? ????????????????????? | | ????????????????????????? # ????????????????????? | | ????????????????????????? ? ????????????????????? | | ?????????????????????????#?# ????????????????????? | | ???????????????????????????? ???????????????????? | | ?????????????????????????????????????????????????? | | ?????????????????????????????????????????????????? | | ?????????????????????????????????????????????????? | | ?????????????????????????????????????????????????? | | | | | | | | | | | | | +----------------------------------------------------+ Best States ------------- Heat Dissipation 139 Coolant Potential 180 Energy Generation 41 Energy Capacity 1100 Matter Stores 550 Matter Capacity 550 Sight Range 16 Terrain Scan Density 10 ECM Strength 1 Jamming Range 16 EM Shielding 2 Armor Coverage 1650 Resistance: KI 20 Resistance: TH 30 Resistance: EM 50 Core Shielding 30 Propulsion Shielding 33 Weapon Cycling 25 Phase Shifting 5 Evasion (%) 55 Targeting Accuracy 5 Target Analysis 8 Core Analysis 6 Recoil Reduction 6 Energy Filtering 30 Salvage Targeting 2 Offensive Hacking 10 Item Schematics ----------------- None Robot Schematics ------------------ None Fabricated ------------ Nothing Alien Tech Used ----------------- None Achievements -------------- Can't Touch This Giant Slayer Killing Spree Turtlemind Challenges ------------ None Game ------ Seed SupersonicAlloyLattice Manual? 0 Play Time 06:07:24 Cumulative 103.9 hours Start 2025.03.08 @ 18:21:21 End 2025.03.28 @ 23:31:26 Sessions 11 Manual Loads 0 Difficulty Rogue Special Mode None Game No. 49 Rogue 39 Adventurer 5 Explorer 5 Win Type - Total 4 Types 4/0/0/0/0/0/0/0/0 Lore% 24 Gallery% 51 Achievement% 43 Wizard Run 0 Options --------- Layout 2 ASCII 0 Keyboard 0 Movement Mouse Keybinds 1 Fullscreen 1 Font 20/Terminus Map View 50x44 Zoom Use 0% Tactical HUD 1 Map Filters NONE Filters SATURATION(60) Steam 1 RUN: 56711e39-eb7d-4820-8182-9d086e8961e1